fUSD/lending_fUSD_20260702
["ID","MTS","AMOUNT","RATE_DAILY","PERIOD"]
[426857889,1782963041000,-500.0,0.0003,2]
[426857883,1782963041000,-500.0,0.0003,2]
[426857886,1782963041000,-500.0,0.0003,2]
[426857887,1782963041000,-500.0,0.0003,2]
[426857877,1782963041000,-500.0,0.0003,2]
[426857878,1782963041000,-500.0,0.0003,2]
[426857874,1782963041000,-500.0,0.0003,2]
[426857868,1782963041000,-500.0,0.0003,2]
[426857870,1782963041000,-200.0,0.0003,2]
[426857873,1782963041000,-500.0,0.0003,2]
[426857876,1782963041000,-500.0,0.0003,2]
[426857866,1782963041000,-500.0,0.0003,2]
[426857860,1782963041000,-500.0,0.0003,2]
[426857864,1782963041000,-500.0,0.0003,2]
[426857862,1782963041000,-500.0,0.0003,2]
[426857857,1782963041000,-500.0,0.0003,2]
[426857891,1782963041000,-500.0,0.0003,2]
[426857880,1782963041000,-500.0,0.0003,2]
[426857892,1782963041000,-500.0,0.0003,2]
[426857893,1782963041000,-500.0,0.0003,2]
[426857896,1782963041000,-500.0,0.0003,2]
[426857922,1782963041000,-151.0,0.0003,7]
[426857917,1782963041000,-152.117066,0.0003,2]
[426857919,1782963041000,-151.0,0.0003,7]
[426857921,1782963041000,-151.0,0.0003,7]
[426857918,1782963041000,-151.0,0.0003,7]
[426857916,1782963041000,-500.0,0.0003,2]
[426857915,1782963041000,-500.0,0.0003,2]
[426857914,1782963041000,-500.0,0.0003,2]
[426857899,1782963041000,-500.0,0.0003,2]
[426857913,1782963041000,-500.0,0.0003,2]
[426857905,1782963041000,-500.0,0.0003,2]
[426857909,1782963041000,-500.0,0.0003,2]
[426857910,1782963041000,-500.0,0.0003,2]
[426857912,1782963041000,-500.0,0.0003,2]
[426857902,1782963041000,-500.0,0.0003,2]
[426857904,1782963041000,-500.0,0.0003,2]
[426857898,1782963041000,-500.0,0.0003,2]
[426857897,1782963041000,-500.0,0.0003,2]
[426857894,1782963041000,-500.0,0.0003,2]
[426857901,1782963041000,-500.0,0.0003,2]
[426857895,1782963041000,-500.0,0.0003,2]
[426857906,1782963041000,-500.0,0.0003,2]
[426857903,1782963041000,-500.0,0.0003,2]
[426857911,1782963041000,-500.0,0.0003,2]
[426857908,1782963041000,-500.0,0.0003,2]
[426857907,1782963041000,-500.0,0.0003,2]
[426858012,1782963042000,-239.892216,0.00030136,7]
[426858014,1782963042000,-239.892216,0.00030136,7]
[426858015,1782963042000,-200.0,0.00030136,2]
[426858013,1782963042000,-239.892216,0.00030136,7]
[426858017,1782963042000,-500.0,0.00030136,2]
[426858019,1782963042000,-500.0,0.00030136,2]
[426858018,1782963042000,-500.0,0.00030136,2]
[426858020,1782963042000,-500.0,0.00030136,2]
[426858023,1782963042000,-500.0,0.00030136,2]
[426858027,1782963042000,-500.0,0.00030136,2]
[426858034,1782963042000,-500.0,0.00030136,2]
[426858057,1782963042000,-500.0,0.00030136,2]
[426858031,1782963042000,-500.0,0.00030136,2]
[426858033,1782963042000,-500.0,0.00030136,2]
[426858035,1782963042000,-500.0,0.00030136,2]
[426858038,1782963042000,-269.594678,0.00030136,7]
[426858042,1782963042000,-500.0,0.00030136,2]
[426858041,1782963042000,-500.0,0.00030136,2]
[426858043,1782963042000,-500.0,0.00030136,2]
[426858058,1782963042000,-500.0,0.00030136,2]
[426858047,1782963042000,-500.0,0.00030136,2]
[426858045,1782963042000,-500.0,0.00030136,2]
[426858052,1782963042000,-500.0,0.00030136,2]
[426858049,1782963042000,-500.0,0.00030136,2]
[426858030,1782963042000,-500.0,0.00030136,2]
[426858011,1782963042000,-239.892216,0.00030136,7]
[426857998,1782963042000,-2000.0,0.00030135,2]
[426858009,1782963042000,-151.0,0.00030136,7]
[426858056,1782963042000,-500.0,0.00030136,2]
[426857985,1782963042000,-13700.76125915,0.0003012,2]
[426857987,1782963042000,-12500.0,0.00030125,2]
[426857986,1782963042000,-9641.88,0.00030125,2]
[426857988,1782963042000,-808.65733387,0.00030125,2]
[426857990,1782963042000,-151.0,0.00030125,7]
[426857989,1782963042000,-151.0,0.00030125,7]
[426857991,1782963042000,-727.93084274,0.00030126,5]
[426857994,1782963042000,-2000.0,0.00030129,20]
[426857992,1782963042000,-250.0,0.00030126,5]
[426857993,1782963042000,-674.0,0.00030127,5]
[426857995,1782963042000,-1012.0265,0.0003013,4]
[426857997,1782963042000,-300.0,0.00030135,10]
[426857996,1782963042000,-306.43330787,0.00030135,10]
[426858000,1782963042000,-2000.0,0.00030135,10]
[426857999,1782963042000,-2000.0,0.00030135,30]
[426858001,1782963042000,-151.0,0.00030136,2]
[426858002,1782963042000,-500.0,0.00030136,2]
[426858004,1782963042000,-154.723155,0.00030136,7]
[426858003,1782963042000,-152.363162,0.00030136,7]
[426858016,1782963042000,-500.0,0.00030136,2]
[426858005,1782963042000,-156.488624,0.00030136,7]
[426858006,1782963042000,-151.0,0.00030136,7]
[426858010,1782963042000,-151.0,0.00030136,7]
[426858008,1782963042000,-151.0,0.00030136,7]
[426858007,1782963042000,-151.0,0.00030136,7]
[426858050,1782963042000,-500.0,0.00030136,2]
[426858095,1782963042000,-2000.0,0.00030136,2]
[426858059,1782963042000,-500.0,0.00030136,2]
[426858094,1782963042000,-2000.0,0.00030136,2]
[426858091,1782963042000,-2000.0,0.00030136,2]
[426858093,1782963042000,-2000.0,0.00030136,2]
[426858097,1782963042000,-2000.0,0.00030136,2]
[426858106,1782963042000,-2000.0,0.00030136,2]
[426858107,1782963042000,-2000.0,0.00030136,2]
[426858098,1782963042000,-2000.0,0.00030136,2]
[426858096,1782963042000,-2000.0,0.00030136,2]
[426858099,1782963042000,-2000.0,0.00030136,2]
[426858100,1782963042000,-2000.0,0.00030136,2]
[426858105,1782963042000,-2000.0,0.00030136,2]
[426858102,1782963042000,-2000.0,0.00030136,2]
[426858101,1782963042000,-2000.0,0.00030136,2]
[426858104,1782963042000,-2000.0,0.00030136,2]
[426858108,1782963042000,-2000.0,0.00030136,2]
[426858110,1782963042000,-2000.0,0.00030136,2]
[426858111,1782963042000,-2000.0,0.00030136,2]
[426858112,1782963042000,-2000.0,0.00030136,2]
[426858113,1782963042000,-2000.0,0.00030136,2]
[426858117,1782963042000,-500.0,0.00030136,2]
[426858115,1782963042000,-2000.0,0.00030136,2]
[426858116,1782963042000,-1072.17329972,0.00030136,2]
[426858109,1782963042000,-2000.0,0.00030136,2]
[426858114,1782963042000,-2000.0,0.00030136,2]
[426858054,1782963042000,-500.0,0.00030136,2]
[426858092,1782963042000,-2000.0,0.00030136,2]
[426858090,1782963042000,-2000.0,0.00030136,2]
[426858103,1782963042000,-2000.0,0.00030136,2]
[426858089,1782963042000,-2000.0,0.00030136,2]
[426858088,1782963042000,-2000.0,0.00030136,2]
[426858062,1782963042000,-500.0,0.00030136,2]
[426858065,1782963042000,-500.0,0.00030136,2]
[426858071,1782963042000,-2000.0,0.00030136,2]
[426858063,1782963042000,-500.0,0.00030136,2]
[426858070,1782963042000,-2000.0,0.00030136,2]
[426858067,1782963042000,-561.08755963,0.00030136,2]
[426858073,1782963042000,-2000.0,0.00030136,2]
[426858068,1782963042000,-500.0,0.00030136,14]
[426858069,1782963042000,-2000.0,0.00030136,2]
[426858072,1782963042000,-2000.0,0.00030136,2]
[426858075,1782963042000,-2000.0,0.00030136,2]
[426858074,1782963042000,-2000.0,0.00030136,2]
[426858060,1782963042000,-500.0,0.00030136,2]
[426858082,1782963042000,-2000.0,0.00030136,2]
[426858077,1782963042000,-2000.0,0.00030136,2]
[426858080,1782963042000,-2000.0,0.00030136,2]
[426858081,1782963042000,-2000.0,0.00030136,2]
[426858083,1782963042000,-2000.0,0.00030136,2]
[426858084,1782963042000,-2000.0,0.00030136,2]
[426858078,1782963042000,-2000.0,0.00030136,2]
[426858079,1782963042000,-2000.0,0.00030136,2]
[426858076,1782963042000,-2000.0,0.00030136,2]
[426858087,1782963042000,-2000.0,0.00030136,2]
[426858085,1782963042000,-2000.0,0.00030136,2]
[426858086,1782963042000,-2000.0,0.00030136,2]
[426858157,1782963043000,-209.425,0.00030137,2]
[426858145,1782963043000,-500.0,0.00030137,3]
[426858159,1782963043000,-151.0,0.00030137,7]
[426858158,1782963043000,-2112.59,0.00030137,2]
[426858152,1782963043000,-1551.24,0.00030137,30]
[426858149,1782963043000,-681.0,0.00030137,5]
[426858151,1782963043000,-1801.71,0.00030137,7]
[426858143,1782963043000,-500.0,0.00030137,3]
[426858147,1782963043000,-500.0,0.00030137,3]
[426858148,1782963043000,-667.0,0.00030137,5]
[426858160,1782963043000,-151.0,0.00030137,7]
[426858150,1782963043000,-235.35724197,0.00030137,30]
[426858163,1782963043000,-151.0,0.0003015,7]
[426858167,1782963043000,-500.0,0.00030199,7]
[426858162,1782963043000,-151.0,0.0003015,7]
[426858161,1782963043000,-3988.71993781,0.00030144,2]
[426858165,1782963043000,-1589.0,0.00030174,30]
[426858166,1782963043000,-166.45,0.00030192,2]
[426858169,1782963043000,-15874.28330803,0.000302,2]
[426858179,1782963043000,-376.98255994,0.00030222,2]
[426858178,1782963043000,-239.892226,0.000302,7]
[426858180,1782963043000,-1012.02651,0.0003023,5]
[426858177,1782963043000,-239.892216,0.000302,7]
[426858170,1782963043000,-230.19,0.000302,7]
[426858168,1782963043000,-685.03,0.00030199,7]
[426858164,1782963043000,-637.69,0.00030171,120]
[426858146,1782963043000,-295.81447753,0.00030137,120]
[426858172,1782963043000,-151.0,0.000302,7]
[426858156,1782963043000,-42384.0,0.00030137,120]
[426858118,1782963043000,-182.13,0.00030136,7]
[426858119,1782963043000,-468.21940733,0.00030136,2]
[426858131,1782963043000,-626.55,0.00030137,90]
[426858121,1782963043000,-179.81,0.00030136,30]
[426858122,1782963043000,-200.0,0.00030136,2]
[426858120,1782963043000,-178.26,0.00030136,7]
[426858123,1782963043000,-4690.64702167,0.00030137,2]
[426858127,1782963043000,-799.37489077,0.00030137,30]
[426858125,1782963043000,-10863.25146301,0.00030137,3]
[426858126,1782963043000,-799.0,0.00030137,30]
[426858128,1782963043000,-1018.28,0.00030137,2]
[426858130,1782963043000,-626.55,0.00030137,90]
[426858129,1782963043000,-626.55,0.00030137,90]
[426858124,1782963043000,-5007.0,0.00030137,7]
[426858132,1782963043000,-15452.68,0.00030137,30]
[426858135,1782963043000,-172.0835489,0.00030137,2]
[426858134,1782963043000,-475.34010035,0.00030137,2]
[426858133,1782963043000,-237.67005018,0.00030137,2]
[426858140,1782963043000,-500.0,0.00030137,3]
[426858142,1782963043000,-500.0,0.00030137,3]
[426858137,1782963043000,-516.2506467,0.00030137,2]
[426858136,1782963043000,-344.1670978,0.00030137,2]
[426858138,1782963043000,-688.3341956,0.00030137,2]
[426858141,1782963043000,-500.0,0.00030137,3]
[426858139,1782963043000,-1000.0,0.00030137,120]
[426858144,1782963043000,-500.0,0.00030137,3]
[426858173,1782963043000,-151.0,0.000302,7]
[426858154,1782963043000,-202.0,0.00030137,30]
[426858171,1782963043000,-600.48,0.000302,7]
[426858212,1782963043000,-517.91,0.000303,2]
[426858213,1782963043000,-517.91,0.000303,2]
[426858214,1782963043000,-517.94,0.000303,2]
[426858215,1782963043000,-510.45,0.000303,2]
[426858207,1782963043000,-517.91,0.000303,2]
[426858208,1782963043000,-517.91,0.000303,2]
[426858209,1782963043000,-517.91,0.000303,2]
[426858226,1782963043000,-391.58,0.000303,2]
[426858227,1782963043000,-396.26,0.000303,2]
[426858225,1782963043000,-391.58,0.000303,2]
[426858223,1782963043000,-510.45,0.000303,2]
[426858216,1782963043000,-510.45,0.000303,2]
[426858206,1782963043000,-517.91,0.000303,2]
[426858218,1782963043000,-510.45,0.000303,2]
[426858217,1782963043000,-510.45,0.000303,2]
[426858224,1782963043000,-510.51,0.000303,2]
[426858221,1782963043000,-510.45,0.000303,2]
[426858219,1782963043000,-510.45,0.000303,2]
[426858222,1782963043000,-510.45,0.000303,2]
[426858228,1782963043000,-241.58,0.000303,2]
[426858230,1782963043000,-1012.0265,0.0003033,6]
[426858233,1782963043000,-10000.0,0.00030333,2]
[426858234,1782963043000,-10000.0,0.00030333,2]
[426858232,1782963043000,-13700.76125915,0.00030332,2]
[426858231,1782963043000,-974.12702589,0.00030331,2]
[426858176,1782963043000,-239.892216,0.000302,7]
[426858220,1782963043000,-510.45,0.000303,2]
[426858210,1782963043000,-517.91,0.000303,2]
[426858235,1782963043000,-299.00682203,0.00030341,2]
[426858205,1782963043000,-517.91,0.000303,2]
[426858229,1782963043000,-509.07,0.000303,2]
[426858174,1782963043000,-151.0,0.000302,7]
[426858183,1782963043000,-25000.0,0.0003025,2]
[426858181,1782963043000,-2500.0,0.0003025,2]
[426858182,1782963043000,-12500.0,0.0003025,2]
[426858190,1782963043000,-362.41,0.000303,2]
[426858184,1782963043000,-12500.0,0.0003025,2]
[426858186,1782963043000,-4079.97339439,0.00030296,2]
[426858189,1782963043000,-356.61,0.000303,2]
[426858188,1782963043000,-356.61,0.000303,2]
[426858185,1782963043000,-5000.0,0.00030251,4]
[426858187,1782963043000,-361.27,0.000303,2]
[426858193,1782963043000,-573.22,0.000303,2]
[426858175,1782963043000,-239.892216,0.000302,7]
[426858194,1782963043000,-573.22,0.000303,2]
[426858211,1782963043000,-517.91,0.000303,2]
[426858204,1782963043000,-517.91,0.000303,2]
[426858201,1782963043000,-517.91,0.000303,2]
[426858191,1782963043000,-595.41,0.000303,2]
[426858200,1782963043000,-517.91,0.000303,2]
[426858202,1782963043000,-517.91,0.000303,2]
[426858199,1782963043000,-573.26,0.000303,2]
[426858198,1782963043000,-573.22,0.000303,2]
[426858192,1782963043000,-595.41,0.000303,2]
[426858196,1782963043000,-573.22,0.000303,2]
[426858195,1782963043000,-573.22,0.000303,2]
[426858203,1782963043000,-517.91,0.000303,2]
[426858285,1782963044000,-510.36,0.000306,2]
[426858279,1782963044000,-185.03350935,0.00030549,120]
[426858274,1782963044000,-151.0,0.000305,7]
[426858268,1782963044000,-800.0,0.000305,2]
[426858265,1782963044000,-800.0,0.000305,2]
[426858269,1782963044000,-800.0,0.000305,2]
[426858264,1782963044000,-800.0,0.000305,2]
[426858266,1782963044000,-800.0,0.000305,2]
[426858267,1782963044000,-1000.0,0.000305,30]
[426858263,1782963044000,-800.0,0.000305,2]
[426858270,1782963044000,-191.94037738,0.000305,2]
[426858277,1782963044000,-218.31,0.00030528,30]
[426858283,1782963044000,-152.84,0.000306,2]
[426858276,1782963044000,-12500.0,0.000305,2]
[426858278,1782963044000,-13700.76125915,0.00030544,2]
[426858280,1782963044000,-230.19,0.000306,7]
[426858281,1782963044000,-154.84,0.000306,2]
[426858284,1782963044000,-155.33,0.000306,2]
[426858282,1782963044000,-152.84,0.000306,2]
[426858286,1782963044000,-737.01,0.000306,2]
[426858296,1782963044000,-546.92,0.000306,2]
[426858297,1782963044000,-546.92,0.000306,2]
[426858295,1782963044000,-546.92,0.000306,2]
[426858273,1782963044000,-17124.46,0.000305,2]
[426858287,1782963044000,-737.01,0.000306,2]
[426858275,1782963044000,-151.0,0.000305,7]
[426858272,1782963044000,-12500.0,0.000305,2]
[426858250,1782963044000,-175.51104745,0.00030411,60]
[426858262,1782963044000,-800.0,0.000305,2]
[426858288,1782963044000,-554.9,0.000306,2]
[426858237,1782963044000,-159.40234116,0.00030341,2]
[426858236,1782963044000,-159.40234116,0.00030341,2]
[426858238,1782963044000,-150.0,0.00030347,120]
[426858247,1782963044000,-156.80519712,0.00030389,2]
[426858239,1782963044000,-460.67238593,0.0003036,2]
[426858241,1782963044000,-251.0,0.0003036,2]
[426858245,1782963044000,-12500.0,0.00030375,2]
[426858243,1782963044000,-212.48550959,0.00030363,2]
[426858246,1782963044000,-180.0123663,0.00030385,2]
[426858242,1782963044000,-251.0,0.0003036,2]
[426858240,1782963044000,-251.0,0.0003036,2]
[426858249,1782963044000,-162.95,0.00030411,120]
[426858244,1782963044000,-320.77948105,0.00030364,2]
[426858251,1782963044000,-637.69,0.00030417,120]
[426858260,1782963044000,-800.0,0.000305,2]
[426858252,1782963044000,-200.0,0.00030437,2]
[426858253,1782963044000,-200.0,0.00030437,2]
[426858256,1782963044000,-206.06905985,0.00030454,14]
[426858261,1782963044000,-800.0,0.000305,2]
[426858255,1782963044000,-1589.0,0.00030448,30]
[426858257,1782963044000,-3988.71993781,0.00030489,2]
[426858259,1782963044000,-4000.0,0.000305,3]
[426858258,1782963044000,-500.0,0.00030499,2]
[426858254,1782963044000,-152.0,0.00030445,4]
[426858271,1782963044000,-1616.12,0.000305,2]
[426858290,1782963044000,-554.9,0.000306,2]
[426858248,1782963044000,-3000.0,0.0003041,31]
[426858292,1782963044000,-554.9,0.000306,2]
[426858323,1782963044000,-200.0,0.00030742,2]
[426858325,1782963044000,-270.29809241,0.00030749,2]
[426858328,1782963044000,-500.0,0.00030749,120]
[426858327,1782963044000,-160.03200098,0.00030749,120]
[426858329,1782963044000,-649.67,0.00030749,120]
[426858330,1782963044000,-500.0,0.00030749,14]
[426858331,1782963044000,-500.0,0.00030749,120]
[426858332,1782963044000,-500.0,0.00030749,120]
[426858334,1782963044000,-12500.0,0.0003075,2]
[426858333,1782963044000,-195.68708299,0.0003075,2]
[426858335,1782963044000,-12500.0,0.0003075,2]
[426858337,1782963044000,-500.0,0.0003076,7]
[426858326,1782963044000,-506.19081873,0.00030749,120]
[426858338,1782963044000,-685.03,0.0003076,7]
[426858340,1782963044000,-600.48,0.000308,7]
[426858343,1782963044000,-3988.71993781,0.00030833,2]
[426858341,1782963044000,-4079.97339439,0.00030816,2]
[426858342,1782963044000,-3000.0,0.00030821,32]
[426858350,1782963044000,-195.94862189,0.00030941,2]
[426858339,1782963044000,-208.88194204,0.00030762,120]
[426858344,1782963044000,-1645.5292062,0.0003084,2]
[426858346,1782963044000,-1891.0,0.00030859,10]
[426858347,1782963044000,-12500.0,0.00030875,2]
[426858345,1782963044000,-1149.07153822,0.00030841,2]
[426858348,1782963044000,-171.26,0.000309,2]
[426858289,1782963044000,-554.9,0.000306,2]
[426858336,1782963044000,-13700.76125915,0.00030756,2]
[426858324,1782963044000,-1551.24,0.00030746,30]
[426858349,1782963044000,-637.69,0.0003091,120]
[426858320,1782963044000,-1589.0,0.00030722,30]
[426858291,1782963044000,-554.9,0.000306,2]
[426858294,1782963044000,-546.92,0.000306,2]
[426858293,1782963044000,-554.94,0.000306,2]
[426858298,1782963044000,-167.83,0.000306,2]
[426858299,1782963044000,-167.83,0.000306,2]
[426858302,1782963044000,-218.18,0.000306,2]
[426858307,1782963044000,-637.69,0.00030664,120]
[426858322,1782963044000,-200.0,0.00030742,2]
[426858308,1782963044000,-266.87448948,0.00030666,2]
[426858305,1782963044000,-1149.07153822,0.00030637,2]
[426858301,1782963044000,-150.0,0.000306,2]
[426858303,1782963044000,-157.0,0.00030625,5]
[426858306,1782963044000,-503.0,0.00030661,5]
[426858300,1782963044000,-169.83,0.000306,2]
[426858309,1782963044000,-6005.89,0.00030667,2]
[426858304,1782963044000,-12500.0,0.00030625,2]
[426858317,1782963044000,-318.49526478,0.0003069,2]
[426858310,1782963044000,-251.0,0.0003069,2]
[426858312,1782963044000,-251.0,0.0003069,2]
[426858318,1782963044000,-2000.0,0.000307,2]
[426858313,1782963044000,-251.0,0.0003069,2]
[426858315,1782963044000,-251.0,0.0003069,2]
[426858314,1782963044000,-251.0,0.0003069,2]
[426858316,1782963044000,-251.0,0.0003069,2]
[426858321,1782963044000,-152.09168621,0.00030728,2]
[426858311,1782963044000,-251.0,0.0003069,2]
[426858319,1782963044000,-211.8818213,0.00030702,14]
[426858385,1782963045000,-251.0,0.0003102,2]
[426858387,1782963045000,-732.92772792,0.00031026,2]
[426858386,1782963045000,-251.0,0.0003102,2]
[426858384,1782963045000,-251.0,0.0003102,2]
[426858388,1782963045000,-200.0,0.00031049,2]
[426858381,1782963045000,-251.0,0.0003102,2]
[426858380,1782963045000,-251.0,0.0003102,2]
[426858390,1782963045000,-352.34869005,0.00031056,2]
[426858389,1782963045000,-200.0,0.00031049,2]
[426858382,1782963045000,-251.0,0.0003102,2]
[426858383,1782963045000,-251.0,0.0003102,2]
[426858405,1782963045000,-205.3195684,0.00031249,2]
[426858394,1782963045000,-12500.0,0.00031125,2]
[426858393,1782963045000,-153.9896763,0.000311,30]
[426858395,1782963045000,-220.0670187,0.0003115,120]
[426858403,1782963045000,-172.38598691,0.00031249,2]
[426858400,1782963045000,-3000.0,0.00031232,33]
[426858399,1782963045000,-186.86115497,0.00031225,2]
[426858396,1782963045000,-234.0,0.00031156,120]
[426858397,1782963045000,-637.69,0.00031156,120]
[426858398,1782963045000,-13700.76125915,0.0003118,2]
[426858402,1782963045000,-152.0,0.00031249,5]
[426858401,1782963045000,-182.39660919,0.00031233,2]
[426858379,1782963045000,-12500.0,0.00031,2]
[426858391,1782963045000,-500.0,0.00031095,2]
[426858378,1782963045000,-164.280691,0.00031,7]
[426858363,1782963045000,-800.0,0.00031,2]
[426858375,1782963045000,-12500.0,0.00031,2]
[426858404,1782963045000,-513.298921,0.00031249,2]
[426858351,1782963045000,-195.94862189,0.00030941,2]
[426858354,1782963045000,-1589.0,0.00030996,30]
[426858352,1782963045000,-13700.76125915,0.00030968,2]
[426858353,1782963045000,-1827.78493963,0.00030974,2]
[426858366,1782963045000,-800.0,0.00031,2]
[426858356,1782963045000,-459.94877672,0.00031,2]
[426858355,1782963045000,-2739.1507247,0.00031,120]
[426858357,1782963045000,-152.00653123,0.00031,14]
[426858362,1782963045000,-800.0,0.00031,2]
[426858361,1782963045000,-161.0,0.00031,120]
[426858358,1782963045000,-10000.0,0.00031,120]
[426858364,1782963045000,-800.0,0.00031,2]
[426858359,1782963045000,-25000.0,0.00031,14]
[426858360,1782963045000,-10000.0,0.00031,30]
[426858365,1782963045000,-800.0,0.00031,2]
[426858373,1782963045000,-230.19,0.00031,7]
[426858370,1782963045000,-1000.0,0.00031,30]
[426858367,1782963045000,-353.1567064,0.00031,5]
[426858369,1782963045000,-800.0,0.00031,2]
[426858376,1782963045000,-1000.0,0.00031,7]
[426858368,1782963045000,-800.0,0.00031,2]
[426858371,1782963045000,-31085.67664947,0.00031,2]
[426858377,1782963045000,-151.0,0.00031,7]
[426858374,1782963045000,-233.79,0.00031,7]
[426858372,1782963045000,-800.0,0.00031,2]
[426858406,1782963045000,-12500.0,0.0003125,2]
[426858414,1782963045000,-500.0,0.00031341,120]
[426858409,1782963045000,-1589.0,0.0003127,30]
[426858444,1782963045000,-701.91789109,0.0003145,2]
[426858450,1782963045000,-5050.7266,0.000315,2]
[426858449,1782963045000,-150.0,0.000315,2]
[426858447,1782963045000,-12500.0,0.000315,2]
[426858445,1782963045000,-497.38,0.00031466,3]
[426858441,1782963045000,-312.0,0.00031407,120]
[426858440,1782963045000,-637.69,0.00031407,120]
[426858448,1782963045000,-12500.0,0.000315,2]
[426858446,1782963045000,-348.95,0.00031484,2]
[426858452,1782963045000,-800.0,0.000315,2]
[426858451,1782963045000,-201.72212327,0.000315,2]
[426858454,1782963045000,-800.0,0.000315,2]
[426858455,1782963045000,-800.0,0.000315,2]
[426858453,1782963045000,-800.0,0.000315,2]
[426858456,1782963045000,-344.80897902,0.000315,2]
[426858461,1782963045000,-233.79,0.000315,7]
[426858458,1782963045000,-800.0,0.000315,2]
[426858457,1782963045000,-800.0,0.000315,2]
[426858460,1782963045000,-800.0,0.000315,2]
[426858410,1782963045000,-4079.97339439,0.00031337,2]
[426858462,1782963045000,-507.49219555,0.00031506,14]
[426858463,1782963045000,-188.26400183,0.00031507,15]
[426858466,1782963045000,-299.00682202,0.00031574,2]
[426858465,1782963045000,-255.10052805,0.00031569,120]
[426858464,1782963045000,-1589.0,0.00031544,30]
[426858442,1782963045000,-20380.55578297,0.0003143,4]
[426858439,1782963045000,-600.48,0.000314,7]
[426858459,1782963045000,-1000.0,0.000315,30]
[426858434,1782963045000,-13700.76125915,0.00031392,2]
[426858431,1782963045000,-500.0,0.00031372,7]
[426858412,1782963045000,-649.67,0.00031341,120]
[426858408,1782963045000,-974.12702586,0.00031256,2]
[426858407,1782963045000,-12500.0,0.0003125,2]
[426858413,1782963045000,-500.0,0.00031341,14]
[426858415,1782963045000,-500.0,0.00031341,120]
[426858417,1782963045000,-238.0,0.00031342,3]
[426858418,1782963045000,-217.0,0.00031342,3]
[426858419,1782963045000,-251.0,0.0003135,2]
[426858416,1782963045000,-186.10596221,0.00031342,2]
[426858420,1782963045000,-251.0,0.0003135,2]
[426858425,1782963045000,-224.08544863,0.0003135,2]
[426858411,1782963045000,-500.0,0.00031341,120]
[426858421,1782963045000,-251.0,0.0003135,2]
[426858424,1782963045000,-251.0,0.0003135,2]
[426858430,1782963045000,-1392.74706593,0.00031371,2]
[426858429,1782963045000,-200.0,0.0003136,2]
[426858428,1782963045000,-1591.4,0.00031355,30]
[426858427,1782963045000,-999.83307271,0.0003135,2]
[426858432,1782963045000,-685.03,0.00031372,7]
[426858437,1782963045000,-230.19,0.000314,7]
[426858426,1782963045000,-999.83307272,0.0003135,2]
[426858422,1782963045000,-251.0,0.0003135,2]
[426858423,1782963045000,-251.0,0.0003135,2]
[426858436,1782963045000,-350.0,0.00031398,19]